{"text_format":"1","workbook":"xlsx","n_sheets":13,"sheets":["АРХИВАЦИЯ","06см5а (3)","07см5а (5)","11см5а (6)","06см5а (4)","07см5а","07см5а (2)","08см5а (3)","08см5а (4)","09см5а (5)","09см5а (6)","10см5а (7)","11см5а (8)"],"not_rendered":{"charts":0,"images":0,"macros":1,"external_links":0,"defined_names":6,"comments":0,"pivot_tables":0},"unopened":[],"bounds":{"document_bytes":16777216,"sheet_cells":100000,"rows_first":2000,"rows_last":500,"rows_between":2000,"halvings":0,"cell_chars":16384,"cell_head_chars":4096},"cells_cut":0,"cells_raw":0,"read":"whole","date_system":"1900"}

{"sheet":"АРХИВАЦИЯ","index":0,"n_rows":12,"n_cols":3,"rows_kept":12,"cut":false,"hidden":false,"merged":[]}
[]
["06см5а (3)",null,"список листов в которых нужно:"]
["07см5а (5)"]
[null,null,"Все формулы  преобразовать в значения, "]
["06см5а (4)",null,"Все форматы оставить, как они были до выполнения макроса и удалить правила условного форматирования с листа"]
["07см5а",null,"С диспетчера имен удалить все именованые диапазоны, а имя Область Печати привязать к строгому текущему диапазону (область печати определяется формулами)"]
["07см5а (2)"]
["08см5а (3)"]
["08см5а (4)"]
["09см5а (5)"]
["09см5а (6)"]
["10см5а (7)"]

{"sheet":"06см5а (3)","index":1,"n_rows":13,"n_cols":8,"rows_kept":13,"cut":false,"hidden":false,"merged":[]}
[1,1,1,1,1,1,1,1]
[null,"январь",1,45.3,null,null,null,{"$f":"C2+D2","v":46.3}]
[null,"февраль",2,45.3,null,null,null,{"$f":"C3+D3","v":47.3}]
[null,"март",3,45.3,null,null,null,48.3]
[null,"апрель",4,45.3,null,null,null,49.3]
[null,"май",5,45.3,null,null,null,50.3]
[null,"июнь",6,45.3,null,null,null,51.3]
[null,"июль",7,45.3,null,null,null,52.3]
[null,"август",8,45.3,null,null,null,53.3]
[null,"сентябрь",9,45.3,null,null,null,54.3]
[null,"октябрь",10,45.3,null,null,null,55.3]
[null,"ноябрь",11,45.3,null,null,null,56.3]
[null,"декабрь",12,45.3,null,null,null,57.3]

{"sheet":"07см5а (5)","index":2,"n_rows":13,"n_cols":8,"rows_kept":13,"cut":false,"hidden":false,"merged":[]}
[1,1,1,1,1,1,1,1]
[null,"январь",1,45.3,null,null,null,{"$f":"C2+D2","v":46.3}]
[null,"февраль",2,45.3,null,null,null,{"$f":"C3+D3","v":47.3}]
[null,"март",3,45.3,null,null,null,48.3]
[null,"апрель",4,45.3,null,null,null,49.3]
[null,"май",5,45.3,null,null,null,50.3]
[null,"июнь",6,45.3,null,null,null,51.3]
[null,"июль",7,45.3,null,null,null,52.3]
[null,"август",8,45.3,null,null,null,53.3]
[null,"сентябрь",9,45.3,null,null,null,54.3]
[null,"октябрь",10,45.3,null,null,null,55.3]
[null,"ноябрь",11,45.3,null,null,null,56.3]
[null,"декабрь",12,45.3,null,null,null,57.3]

{"sheet":"11см5а (6)","index":3,"n_rows":13,"n_cols":8,"rows_kept":13,"cut":false,"hidden":false,"merged":[]}
[1,1,1,1,1,1,1,1]
[null,"январь",1,45.3,null,null,null,{"$f":"C2+D2","v":46.3}]
[null,"февраль",2,45.3,null,null,null,{"$f":"C3+D3","v":47.3}]
[null,"март",3,45.3,null,null,null,48.3]
[null,"апрель",4,45.3,null,null,null,49.3]
[null,"май",5,45.3,null,null,null,50.3]
[null,"июнь",6,45.3,null,null,null,51.3]
[null,"июль",7,45.3,null,null,null,52.3]
[null,"август",8,45.3,null,null,null,53.3]
[null,"сентябрь",9,45.3,null,null,null,54.3]
[null,"октябрь",10,45.3,null,null,null,55.3]
[null,"ноябрь",11,45.3,null,null,null,56.3]
[null,"декабрь",12,45.3,null,null,null,57.3]

{"sheet":"06см5а (4)","index":4,"n_rows":13,"n_cols":8,"rows_kept":13,"cut":false,"hidden":false,"merged":[]}
[]
[null,"январь",1,45.3,null,null,null,{"$f":"C2+D2","v":46.3}]
[null,"февраль",2,45.3,null,null,null,{"$f":"C3+D3","v":47.3}]
[null,"март",3,45.3,null,null,null,48.3]
[null,"апрель",4,45.3,null,null,null,49.3]
[null,"май",5,45.3,null,null,null,50.3]
[null,"июнь",6,45.3,null,null,null,51.3]
[null,"июль",7,45.3,null,null,null,52.3]
[null,"август",8,45.3,null,null,null,53.3]
[null,"сентябрь",9,45.3,null,null,null,54.3]
[null,"октябрь",10,45.3,null,null,null,55.3]
[null,"ноябрь",11,45.3,null,null,null,56.3]
[null,"декабрь",12,45.3,null,null,null,57.3]

{"sheet":"07см5а","index":5,"n_rows":13,"n_cols":8,"rows_kept":13,"cut":false,"hidden":false,"merged":[]}
[]
[null,"январь",1,45.3,null,null,null,{"$f":"C2+D2","v":46.3}]
[null,"февраль",2,45.3,null,null,null,{"$f":"C3+D3","v":47.3}]
[null,"март",3,45.3,null,null,null,48.3]
[null,"апрель",4,45.3,null,null,null,49.3]
[null,"май",5,45.3,null,null,null,50.3]
[null,"июнь",6,45.3,null,null,null,51.3]
[null,"июль",7,45.3,null,null,null,52.3]
[null,"август",8,45.3,null,null,null,53.3]
[null,"сентябрь",9,45.3,null,null,null,54.3]
[null,"октябрь",10,45.3,null,null,null,55.3]
[null,"ноябрь",11,45.3,null,null,null,56.3]
[null,"декабрь",12,45.3,null,null,null,57.3]

{"sheet":"07см5а (2)","index":6,"n_rows":13,"n_cols":8,"rows_kept":13,"cut":false,"hidden":false,"merged":[]}
[]
[null,"январь",1,45.3,null,null,null,{"$f":"C2+D2","v":46.3}]
[null,"февраль",2,45.3,null,null,null,{"$f":"C3+D3","v":47.3}]
[null,"март",3,45.3,null,null,null,48.3]
[null,"апрель",4,45.3,null,null,null,49.3]
[null,"май",5,45.3,null,null,null,50.3]
[null,"июнь",6,45.3,null,null,null,51.3]
[null,"июль",7,45.3,null,null,null,52.3]
[null,"август",8,45.3,null,null,null,53.3]
[null,"сентябрь",9,45.3,null,null,null,54.3]
[null,"октябрь",10,45.3,null,null,null,55.3]
[null,"ноябрь",11,45.3,null,null,null,56.3]
[null,"декабрь",12,45.3,null,null,null,57.3]

{"sheet":"08см5а (3)","index":7,"n_rows":13,"n_cols":8,"rows_kept":13,"cut":false,"hidden":false,"merged":[]}
[]
[null,"январь",1,45.3,null,null,null,{"$f":"C2+D2","v":46.3}]
[null,"февраль",2,45.3,null,null,null,{"$f":"C3+D3","v":47.3}]
[null,"март",3,45.3,null,null,null,48.3]
[null,"апрель",4,45.3,null,null,null,49.3]
[null,"май",5,45.3,null,null,null,50.3]
[null,"июнь",6,45.3,null,null,null,51.3]
[null,"июль",7,45.3,null,null,null,52.3]
[null,"август",8,45.3,null,null,null,53.3]
[null,"сентябрь",9,45.3,null,null,null,54.3]
[null,"октябрь",10,45.3,null,null,null,55.3]
[null,"ноябрь",11,45.3,null,null,null,56.3]
[null,"декабрь",12,45.3,null,null,null,57.3]

{"sheet":"08см5а (4)","index":8,"n_rows":13,"n_cols":8,"rows_kept":13,"cut":false,"hidden":false,"merged":[]}
[]
[null,"январь",1,45.3,null,null,null,{"$f":"C2+D2","v":46.3}]
[null,"февраль",2,45.3,null,null,null,{"$f":"C3+D3","v":47.3}]
[null,"март",3,45.3,null,null,null,48.3]
[null,"апрель",4,45.3,null,null,null,49.3]
[null,"май",5,45.3,null,null,null,50.3]
[null,"июнь",6,45.3,null,null,null,51.3]
[null,"июль",7,45.3,null,null,null,52.3]
[null,"август",8,45.3,null,null,null,53.3]
[null,"сентябрь",9,45.3,null,null,null,54.3]
[null,"октябрь",10,45.3,null,null,null,55.3]
[null,"ноябрь",11,45.3,null,null,null,56.3]
[null,"декабрь",12,45.3,null,null,null,57.3]

{"sheet":"09см5а (5)","index":9,"n_rows":13,"n_cols":8,"rows_kept":13,"cut":false,"hidden":false,"merged":[]}
[]
[null,"январь",1,45.3,null,null,null,{"$f":"C2+D2","v":46.3}]
[null,"февраль",2,45.3,null,null,null,{"$f":"C3+D3","v":47.3}]
[null,"март",3,45.3,null,null,null,48.3]
[null,"апрель",4,45.3,null,null,null,49.3]
[null,"май",5,45.3,null,null,null,50.3]
[null,"июнь",6,45.3,null,null,null,51.3]
[null,"июль",7,45.3,null,null,null,52.3]
[null,"август",8,45.3,null,null,null,53.3]
[null,"сентябрь",9,45.3,null,null,null,54.3]
[null,"октябрь",10,45.3,null,null,null,55.3]
[null,"ноябрь",11,45.3,null,null,null,56.3]
[null,"декабрь",12,45.3,null,null,null,57.3]

{"sheet":"09см5а (6)","index":10,"n_rows":13,"n_cols":8,"rows_kept":13,"cut":false,"hidden":false,"merged":[]}
[]
[null,"январь",1,45.3,null,null,null,{"$f":"C2+D2","v":46.3}]
[null,"февраль",2,45.3,null,null,null,{"$f":"C3+D3","v":47.3}]
[null,"март",3,45.3,null,null,null,48.3]
[null,"апрель",4,45.3,null,null,null,49.3]
[null,"май",5,45.3,null,null,null,50.3]
[null,"июнь",6,45.3,null,null,null,51.3]
[null,"июль",7,45.3,null,null,null,52.3]
[null,"август",8,45.3,null,null,null,53.3]
[null,"сентябрь",9,45.3,null,null,null,54.3]
[null,"октябрь",10,45.3,null,null,null,55.3]
[null,"ноябрь",11,45.3,null,null,null,56.3]
[null,"декабрь",12,45.3,null,null,null,57.3]

{"sheet":"10см5а (7)","index":11,"n_rows":13,"n_cols":8,"rows_kept":13,"cut":false,"hidden":false,"merged":[]}
[]
[null,"январь",1,45.3,null,null,null,{"$f":"C2+D2","v":46.3}]
[null,"февраль",2,45.3,null,null,null,{"$f":"C3+D3","v":47.3}]
[null,"март",3,45.3,null,null,null,48.3]
[null,"апрель",4,45.3,null,null,null,49.3]
[null,"май",5,45.3,null,null,null,50.3]
[null,"июнь",6,45.3,null,null,null,51.3]
[null,"июль",7,45.3,null,null,null,52.3]
[null,"август",8,45.3,null,null,null,53.3]
[null,"сентябрь",9,45.3,null,null,null,54.3]
[null,"октябрь",10,45.3,null,null,null,55.3]
[null,"ноябрь",11,45.3,null,null,null,56.3]
[null,"декабрь",12,45.3,null,null,null,57.3]

{"sheet":"11см5а (8)","index":12,"n_rows":13,"n_cols":8,"rows_kept":13,"cut":false,"hidden":false,"merged":[]}
[]
[null,"январь",1,45.3,null,null,null,{"$f":"C2+D2","v":46.3}]
[null,"февраль",2,45.3,null,null,null,{"$f":"C3+D3","v":47.3}]
[null,"март",3,45.3,null,null,null,48.3]
[null,"апрель",4,45.3,null,null,null,49.3]
[null,"май",5,45.3,null,null,null,50.3]
[null,"июнь",6,45.3,null,null,null,51.3]
[null,"июль",7,45.3,null,null,null,52.3]
[null,"август",8,45.3,null,null,null,53.3]
[null,"сентябрь",9,45.3,null,null,null,54.3]
[null,"октябрь",10,45.3,null,null,null,55.3]
[null,"ноябрь",11,45.3,null,null,null,56.3]
[null,"декабрь",12,45.3,null,null,null,57.3]